bitfinex-derivatives/quotes_BTCF0:USTF0_20241015
["timestamp","ask_amount","ask_price","bid_price","bid_amount"]
[1729013744567,1.43404,66629.0,66615.0,0.04469417]
[1729013744761,1.43404,66629.0,66613.0,0.00225165]
[1729013744762,0.17,66619.0,66613.0,0.00225165]
[1729013744961,0.07506,66617.0,66616.0,0.075059]
[1729013746066,0.07506,66617.0,66598.0,0.07449029]
[1729013746067,0.45036,66616.0,66598.0,0.07449029]
[1729013746261,0.17,66600.0,66599.0,0.435879]
[1729013746562,0.3608,66610.0,66599.0,0.435879]
[1729013746563,0.075077,66601.0,66600.0,0.075077]
[1729013746960,0.075077,66601.0,66600.0,0.245077]
[1729013747163,0.17,66607.0,66603.0,0.075075]
[1729013747465,0.17,66624.0,66606.0,0.17]
[1729013747658,0.17,66624.0,66605.0,0.3608]
[1729013747659,0.075064,66613.0,66612.0,0.17]
[1729013747861,0.075064,66613.0,66612.0,0.605865]
[1729013748164,0.075061,66616.0,66614.0,0.075062]
[1729013748359,0.01120836,66621.0,66613.0,0.0547]
[1729013748554,0.075055,66621.0,66617.0,0.17]
[1729013748760,0.075057,66619.0,66618.0,0.075058]
[1729013749562,0.17,66624.0,66617.0,0.17]
[1729013749768,0.075056,66620.0,66619.0,0.075057]
[1729013750365,0.004,66621.0,66617.0,0.17]
[1729013750561,0.075058,66618.0,66617.0,0.17]
[1729013750766,0.075058,66618.0,66617.0,0.245059]
[1729013751165,0.079055,66621.0,66618.0,0.075057]
[1729013751358,0.3608,66626.0,66619.0,0.075057]
[1729013751558,0.075056,66620.0,66619.0,0.075057]
[1729013752669,0.075056,66620.0,66619.0,0.077057]
[1729013752670,0.081056,66620.0,66619.0,0.077057]
[1729013753058,0.081056,66620.0,66619.0,0.002]
[1729013754268,0.081056,66620.0,66619.0,0.001]
[1729013754466,0.081056,66620.0,66619.0,0.077057]
[1729013754467,0.011,66620.0,66619.0,0.077057]
[1729013754772,0.011,66620.0,66619.0,0.437857]
[1729013756064,0.17,66638.0,66619.0,0.9628]
[1729013756268,0.17,66638.0,66632.0,0.075042]
[1729013756873,0.01068898,66635.0,66632.0,0.075042]
[1729013757068,0.01068898,66635.0,66632.0,0.15661051]
[1729013757671,0.00725203,66633.0,66632.0,0.15661051]
[1729013757870,0.00725203,66633.0,66632.0,0.24642308]
[1729013758371,0.01725203,66633.0,66632.0,0.24742308]
[1729013758673,0.01725203,66633.0,66632.0,0.15761051]
[1729013758871,0.01225203,66633.0,66632.0,0.24741733]
[1729013759070,0.01725203,66633.0,66632.0,0.24841733]
[1729013759586,0.01725203,66633.0,66632.0,0.78649363]
[1729013760572,0.17,66649.0,66635.0,0.075038]
[1729013760773,0.17,66649.0,66632.0,0.78649363]
[1729013760774,0.3608,66656.0,66648.0,0.07482086]
[1729013761076,0.17,66657.0,66651.0,0.07481636]
[1729013761263,0.245014,66657.0,66656.0,0.075015]
[1729013761669,0.01092907,66657.0,66656.0,0.075015]
[1729013761869,0.2265,66661.0,66656.0,0.17]
[1729013762072,0.245013,66658.0,66657.0,0.075013]
[1729013762777,0.17,66658.0,66657.0,0.075013]
[1729013763180,0.01078474,66661.0,66658.0,0.075011]
[1729013763181,0.075013,66659.0,66658.0,0.075011]
[1729013763574,0.075013,66659.0,66658.0,0.13475166]
[1729013764078,0.17225111,66664.0,66657.0,0.17]
[1729013764279,0.17225111,66664.0,66656.0,0.002]
[1729013764280,0.00225111,66664.0,66663.0,0.245007]
[1729013764481,0.01152885,66671.0,66670.0,0.074999]
[1729013764674,0.074992,66677.0,66675.0,0.074994]
[1729013764980,0.435785,66683.0,66682.0,0.074986]
[1729013765176,0.00076,66681.0,66676.0,0.3608]
[1729013765376,0.0575,66684.0,66676.0,0.3608]
[1729013765681,0.0583,66695.0,66685.0,0.074982]
[1729013765682,0.074982,66686.0,66685.0,0.074982]
[1729013766477,0.0575,66690.0,66684.0,0.17]
[1729013766677,0.132477,66690.0,66689.0,0.074978]
[1729013768081,0.132477,66690.0,66685.0,0.088982]
[1729013768082,0.074981,66687.0,66685.0,0.088982]
[1729013768278,0.074981,66687.0,66686.0,0.074981]
[1729013769477,0.075981,66687.0,66686.0,0.075981]
[1729013769874,0.077981,66687.0,66686.0,0.075981]
[1729013770671,0.077981,66687.0,66686.0,0.076981]
[1729013771582,0.003,66687.0,66686.0,0.076981]
[1729013771879,0.003,66687.0,66686.0,0.246981]
[1729013772781,0.17,66706.0,66686.0,1.58268]
[1729013773077,0.074967,66699.0,66698.0,0.17]
[1729013773274,0.133155,66710.0,66694.0,0.5308]
[1729013773275,0.074971,66695.0,66694.0,0.5308]
[1729013773781,0.01122286,66707.0,66697.0,0.074968]
[1729013774084,0.3608,66703.0,66702.0,0.17]
[1729013774384,0.074962,66704.0,66702.0,0.17]
[1729013774584,0.22908,66710.0,66699.0,0.17]
[1729013774585,0.17,66706.0,66699.0,0.17]
[1729013774774,0.074964,66702.0,66700.0,0.074965]
[1729013774978,0.17,66703.0,66697.0,0.074968]
[1729013775179,0.074967,66699.0,66698.0,0.074968]
[1729013775989,0.074967,66699.0,66697.0,0.014]
[1729013775990,0.074968,66698.0,66697.0,0.014]
[1729013776289,0.074968,66698.0,66697.0,0.028]
[1729013776783,0.074968,66698.0,66697.0,0.014]
[1729013777581,0.074968,66698.0,66697.0,0.015]
[1729013777776,0.074968,66698.0,66697.0,0.001]
[1729013778378,0.074968,66698.0,66697.0,0.002]
[1729013780390,0.074968,66698.0,66697.0,0.076969]
[1729013781185,0.074968,66698.0,66697.0,0.002]
[1729013783983,0.244968,66698.0,66697.0,0.002]
[1729013785178,0.074968,66698.0,66697.0,0.002]
[1729013786688,0.01106514,66699.0,66697.0,0.002]
[1729013786689,0.074958,66707.0,66697.0,0.002]
[1729013786992,0.074955,66710.0,66709.0,0.074955]
[1729013787193,0.12734758,66710.0,66709.0,0.5308]
[1729013787490,0.12800216,66712.0,66709.0,0.605756]
[1729013787790,0.05923155,66711.0,66710.0,0.074955]
[1729013787984,0.05923155,66711.0,66709.0,0.54303996]
[1729013788186,0.05923155,66710.0,66709.0,0.61643596]
[1729013788392,0.13292704,66723.0,66715.0,0.074948]
[1729013788587,0.074939,66724.0,66722.0,0.074941]
[1729013788892,0.21851598,66723.0,66722.0,0.17]
[1729013789690,0.21851598,66723.0,66722.0,0.244941]
[1729013789994,0.21851598,66723.0,66722.0,0.258941]
[1729013790794,0.22263671,66723.0,66722.0,0.258941]
[1729013790979,0.36621269,66723.0,66722.0,0.258941]
[1729013791384,0.21851598,66723.0,66722.0,0.245941]
[1729013791589,0.21851598,66723.0,66722.0,0.246941]
[1729013791779,0.30453849,66723.0,66722.0,0.246941]
[1729013792091,0.38098237,66723.0,66722.0,0.246941]
[1729013792395,0.21851598,66723.0,66722.0,0.076941]
[1729013792593,0.30453849,66723.0,66722.0,0.076941]
[1729013792787,0.38098237,66723.0,66722.0,0.076941]
[1729013792988,0.30846629,66723.0,66722.0,0.076941]
[1729013793183,0.21619932,66723.0,66722.0,0.076941]
[1729013794086,0.14357598,66723.0,66722.0,0.246941]
[1729013795085,0.14815816,66723.0,66722.0,0.172]
[1729013795285,0.07494,66723.0,66722.0,0.246939]
[1729013796392,0.07494,66723.0,66722.0,0.076939]
[1729013796697,0.07494,66723.0,66722.0,0.002]
[1729013797089,0.24494,66723.0,66722.0,0.002]
[1729013797296,0.74734518,66723.0,66722.0,0.00049851]
[1729013797494,1.24159924,66723.0,66722.0,0.00049851]
[1729013797795,1.10814518,66723.0,66722.0,0.00049851]
[1729013797994,2.15778518,66723.0,66722.0,0.00049851]
[1729013798389,2.32662077,66723.0,66722.0,0.00049851]
[1729013798795,2.47477893,66723.0,66722.0,0.00049851]
[1729013798995,2.32662077,66723.0,66722.0,0.00049851]
[1729013799195,2.32662077,66723.0,66722.0,0.00012712]
[1729013800596,2.11969974,66723.0,66707.0,0.0559]
[1729013800795,0.074962,66703.0,66697.0,0.0577]
[1729013800996,0.3608,66713.0,66698.0,0.074965]
[1729013800997,0.244968,66699.0,66698.0,0.074965]
[1729013801196,0.30146563,66699.0,66698.0,0.074965]
[1729013801697,0.30146563,66699.0,66693.0,0.0542]
[1729013801698,0.074968,66698.0,66693.0,0.0542]
[1729013801898,0.244973,66694.0,66682.0,0.4139]
[1729013802094,0.13147163,66693.0,66689.0,0.074978]
[1729013802397,0.47444683,66693.0,66683.0,0.0542]
[1729013802596,0.47444683,66693.0,66685.0,0.074982]
[1729013802597,0.3608,66689.0,66685.0,0.074982]
[1729013802799,0.074981,66686.0,66685.0,0.074982]
[1729013803095,0.3574221,66686.0,66685.0,0.074982]
[1729013804696,0.074984,66684.0,66683.0,0.0542]
[1729013804903,0.2824411,66684.0,66682.0,0.3608]
[1729013805195,0.3574261,66683.0,66682.0,0.3608]
[1729013805404,0.074997,66672.0,66670.0,0.3608]
[1729013805697,0.2824411,66671.0,66662.0,0.17]
[1729013805886,0.3608,66673.0,66667.0,0.075003]
[1729013805887,0.245002,66668.0,66667.0,0.075003]
[1729013806195,0.075005,66665.0,66661.0,0.3608]
[1729013806386,0.26470439,66665.0,66661.0,0.3608]
[1729013806586,0.26470439,66665.0,66662.0,0.075008]
[1729013806803,0.18969939,66665.0,66664.0,0.075006]
[1729013807192,0.18969939,66665.0,66664.0,0.02127644]
[1729013807395,0.18969939,66665.0,66661.0,0.3608]
[1729013807597,0.075004,66666.0,66664.0,0.012]
[1729013807793,0.18952189,66665.0,66664.0,0.026]
[1729013808101,0.18952189,66665.0,66664.0,0.101006]
[1729013808395,0.18952189,66665.0,66664.0,0.089006]
[1729013808599,0.18952189,66665.0,66664.0,0.087006]
[1729013808992,0.25066741,66665.0,66664.0,0.087006]
[1729013809198,0.18952189,66665.0,66664.0,0.087006]
[1729013809798,0.26452689,66665.0,66664.0,0.012]
[1729013810194,0.075005,66665.0,66664.0,0.025]
[1729013811200,0.18106284,66668.0,66664.0,0.025]
[1729013811500,0.075004,66666.0,66664.0,0.025]
[1729013812896,0.075005,66665.0,66664.0,0.025]
[1729013813700,0.075005,66665.0,66664.0,0.012]
[1729013813901,0.075005,66665.0,66664.0,0.025]
[1729013816993,0.075005,66665.0,66664.0,0.100006]
[1729013817896,0.075005,66665.0,66664.0,0.096006]
[1729013818603,0.075005,66665.0,66664.0,0.091006]
[1729013819102,0.075005,66665.0,66664.0,0.016]
[1729013819305,0.075005,66665.0,66649.0,0.4181]
[1729013819306,1.5808,66665.0,66649.0,0.4181]
[1729013819495,0.075024,66648.0,66642.0,0.075031]
[1729013819691,0.075024,66648.0,66639.0,0.112]
[1729013819892,0.075024,66648.0,66644.0,0.075029]
[1729013820099,0.075024,66648.0,66645.0,0.075027]
[1729013820898,0.075024,66648.0,66639.0,0.112]
[1729013821109,0.075024,66648.0,66645.0,0.075027]
[1729013821303,0.075024,66648.0,66647.0,0.01425023]
[1729013821904,0.075024,66648.0,66647.0,0.01925023]
[1729013822309,0.075024,66648.0,66647.0,0.01825023]
[1729013822698,0.075024,66648.0,66647.0,0.00625023]
[1729013822894,0.075024,66648.0,66647.0,0.01025023]
[1729013823604,0.08592712,66648.0,66647.0,0.00925023]
[1729013823805,0.25592712,66648.0,66647.0,0.003]
[1729013823993,0.25592712,66648.0,66647.0,0.006]
[1729013825104,0.25592712,66648.0,66647.0,0.00185117]
[1729013825606,0.25592712,66648.0,66647.0,0.003]
[1729013825806,0.25592712,66648.0,66647.0,0.007]
[1729013826706,0.25692712,66648.0,66647.0,0.003]
[1729013827096,0.07503,66643.0,66642.0,0.07503]
[1729013827296,0.5308,66643.0,66630.0,0.05968237]
[1729013827497,0.5308,66643.0,66626.0,0.00225124]
[1729013827498,0.34,66632.0,66626.0,0.00225124]
[1729013827697,0.3608,66643.0,66620.0,0.075055]
[1729013827698,0.245048,66627.0,66620.0,0.075055]
[1729013827901,0.605855,66621.0,66620.0,0.075055]
[1729013829098,0.075058,66618.0,66617.0,0.0557]
[1729013829307,0.075065,66612.0,66611.0,0.3608]
[1729013829611,0.075065,66612.0,66611.0,0.435866]
[1729013829903,0.075065,66612.0,66611.0,0.075066]
[1729013830698,0.3608,66615.0,66607.0,0.0557]
[1729013830900,0.001,66612.0,66611.0,0.087066]
[1729013831503,0.001,66612.0,66611.0,0.100066]
[1729013831504,0.002,66612.0,66611.0,0.100066]
[1729013831903,0.002,66612.0,66611.0,0.15962616]
[1729013832208,0.247065,66612.0,66611.0,0.025]
[1729013832807,0.246065,66612.0,66611.0,0.013]
[1729013834001,0.246065,66612.0,66611.0,0.026]
[1729013834002,0.25819025,66612.0,66611.0,0.026]
[1729013838106,0.247065,66612.0,66611.0,0.101066]
[1729013838809,0.247065,66612.0,66611.0,0.026]
[1729013839017,0.247065,66612.0,66607.0,0.0557]
[1729013839018,1.39236,66612.0,66605.0,0.00225193]
[1729013839310,0.17,66606.0,66599.0,0.075079]
[1729013839520,0.17,66600.0,66599.0,0.075079]
[1729013840213,0.075081,66598.0,66597.0,0.0571]
[1729013840606,0.075086,66593.0,66592.0,0.0519]
[1729013840807,0.245086,66593.0,66592.0,0.0519]
[1729013841315,0.07509,66590.0,66589.0,0.0554]
[1729013841708,0.245087,66593.0,66592.0,0.075087]
[1729013841906,0.3608,66595.0,66589.0,0.0554]
[1729013841907,0.3608,66611.0,66591.0,0.3608]
[1729013842119,0.17,66609.0,66605.0,0.075073]
[1729013842302,0.18069153,66609.0,66605.0,0.075073]
[1729013842507,0.17,66612.0,66611.0,0.075066]
[1729013842708,0.245065,66612.0,66611.0,0.075066]
[1729013843214,0.17,66612.0,66611.0,0.075066]
[1729013843915,0.245065,66612.0,66611.0,0.075066]
[1729013844118,0.17,66612.0,66606.0,0.0554]
[1729013844318,0.24507,66607.0,66606.0,0.0554]
[1729013844618,0.24507,66607.0,66606.0,0.130472]
[1729013845224,0.17,66607.0,66606.0,0.130472]
[1729013845621,0.171,66607.0,66606.0,0.130472]
[1729013846321,0.172,66607.0,66606.0,0.130472]
[1729013846819,0.002,66607.0,66606.0,0.300472]
[1729013847025,0.002,66607.0,66606.0,0.130472]
[1729013848828,0.002,66607.0,66606.0,0.300472]
[1729013850729,0.075051,66624.0,66613.0,0.075064]
[1729013850926,0.075051,66624.0,66623.0,0.17]
[1729013851127,0.36156,66625.0,66624.0,0.075051]
[1729013851128,0.37233239,66625.0,66624.0,0.075051]
[1729013851323,0.3608,66625.0,66624.0,0.127951]
[1729013852629,0.3718,66625.0,66624.0,0.127951]
[1729013852833,0.3718,66625.0,66624.0,0.18765819]
[1729013853231,0.3718,66625.0,66624.0,0.127951]
[1729013854027,0.3838,66625.0,66624.0,0.128951]
[1729013854333,0.3838,66625.0,66624.0,0.28763203]
[1729013855323,0.3838,66625.0,66624.0,0.21317617]
[1729013857341,0.023,66625.0,66624.0,0.30294819]
[1729013857835,0.023,66625.0,66624.0,0.21323731]
[1729013858226,0.023,66625.0,66624.0,0.30300933]
[1729013858422,0.023,66625.0,66624.0,0.21323731]
[1729013858636,0.023,66625.0,66624.0,0.30300933]
[1729013859131,0.023,66625.0,66624.0,0.08528631]
[1729013859341,0.45885,66625.0,66624.0,0.08528631]
[1729013859636,0.45885,66625.0,66624.0,0.001]
[1729013860135,0.45885,66625.0,66624.0,0.06084431]
[1729013860338,0.45885,66625.0,66624.0,0.001]
[1729013862636,0.023,66625.0,66624.0,0.171]
[1729013862938,0.0559,66638.0,66624.0,1.55092594]
[1729013863126,0.00076,66638.0,66636.0,0.245038]
[1729013863327,0.075032,66642.0,66636.0,0.32963294]
[1729013863835,0.3608,66644.0,66643.0,0.07503]
[1729013864035,0.08625155,66647.0,66646.0,0.075027]
[1729013864838,0.08625055,66647.0,66646.0,0.075027]
[1729013865043,0.075025,66647.0,66646.0,0.14974846]
[1729013865234,0.081025,66647.0,66646.0,0.23317061]
[1729013865434,0.081025,66647.0,66646.0,0.075027]
[1729013865924,0.075025,66647.0,66646.0,0.075027]
[1729013866129,0.075025,66647.0,66646.0,0.076027]
[1729013866325,0.075025,66647.0,66646.0,0.080027]
[1729013866524,0.075025,66647.0,66646.0,0.005]
[1729013866939,0.075025,66647.0,66646.0,0.001]
[1729013867136,0.075025,66647.0,66644.0,0.05972476]
[1729013867338,0.075025,66647.0,66630.0,0.07472146]
[1729013867339,0.075029,66644.0,66630.0,0.07472146]
[1729013867641,0.3608,66645.0,66622.0,0.1081]
[1729013867642,0.075033,66640.0,66639.0,0.04480031]
[1729013867827,0.075033,66640.0,66636.0,0.04480031]
[1729013868031,0.07504,66634.0,66633.0,0.04480444]
[1729013868344,0.075041,66633.0,66632.0,0.04480444]
[1729013868533,0.435841,66633.0,66632.0,0.04480444]
[1729013868729,0.07505,66625.0,66624.0,0.14977246]
[1729013868934,0.43585,66625.0,66624.0,0.14977246]
[1729013869234,0.3608,66625.0,66624.0,0.23375201]
[1729013869438,0.3608,66625.0,66624.0,0.15906616]
[1729013869638,0.3608,66625.0,66624.0,0.08401516]
[1729013870442,0.43685,66625.0,66624.0,0.09501516]
[1729013870626,0.69685,66625.0,66624.0,0.09501516]
[1729013870831,0.69685,66625.0,66624.0,0.011]
[1729013871334,0.69685,66625.0,66624.0,0.022]
[1729013871335,0.69785,66625.0,66624.0,0.022]
[1729013871537,0.70853966,66625.0,66624.0,0.022]
[1729013871940,0.70653966,66625.0,66624.0,0.006]
[1729013872152,0.70653966,66625.0,66609.0,0.00225148]
[1729013872153,0.075059,66617.0,66616.0,0.07472457]
[1729013872332,0.075067,66610.0,66609.0,0.07472457]
[1729013872641,0.075067,66610.0,66598.0,0.0562]
[1729013872642,0.6208,66610.0,66605.0,0.07472457]
[1729013872839,0.335072,66606.0,66605.0,0.07472457]
[1729013873036,0.335072,66606.0,66600.0,0.075078]
[1729013873037,0.26,66606.0,66603.0,0.07472457]
[1729013873242,0.3608,66604.0,66598.0,0.22100691]
[1729013873444,0.435874,66604.0,66599.0,0.16019323]
[1729013873643,0.3608,66604.0,66600.0,0.08511423]
[1729013873940,0.075076,66602.0,66601.0,0.08511423]
[1729013875341,0.3608,66604.0,66601.0,0.08511423]
[1729013875539,0.436874,66604.0,66603.0,0.07470759]
[1729013875744,0.436874,66604.0,66603.0,0.08511423]
[1729013876142,0.435874,66604.0,66603.0,0.08511423]
[1729013876543,1.41124,66604.0,66602.0,0.07470179]
[1729013876838,0.075076,66602.0,66601.0,0.012]
[1729013877033,0.075076,66602.0,66601.0,0.05682661]
[1729013877339,0.075076,66602.0,66600.0,0.04482661]
[1729013877537,0.387577,66601.0,66600.0,0.04482661]
[1729013878342,0.075078,66600.0,66599.0,0.04482661]
[1729013878543,0.335078,66600.0,66599.0,0.04482661]
[1729013879047,0.335078,66600.0,66584.0,0.4131]
[1729013879048,0.075081,66598.0,66597.0,0.04482661]
[1729013879244,0.6208,66598.0,66596.0,0.04482661]
[1729013879443,0.075084,66595.0,66594.0,0.04476794]
[1729013879648,0.335084,66595.0,66594.0,0.04476794]
[1729013879843,0.785564,66595.0,66594.0,0.04476794]
[1729013880049,0.075085,66594.0,66593.0,0.04476794]
[1729013880241,0.335085,66594.0,66593.0,0.04476794]
[1729013880643,0.075086,66593.0,66592.0,0.04476794]
[1729013880959,0.075086,66593.0,66580.0,0.45052691]
[1729013880960,0.075096,66584.0,66580.0,0.45052691]
[1729013881257,0.26,66581.0,66578.0,0.00225283]
[1729013881447,0.435902,66579.0,66578.0,0.00225283]
[1729013882143,0.435902,66579.0,66578.0,0.04698327]
[1729013882340,0.435902,66579.0,66578.0,0.01425283]
[1729013883045,0.436902,66579.0,66578.0,0.02425283]
[1729013883443,0.001,66579.0,66578.0,0.097103]
[1729013883648,0.001,66579.0,66578.0,0.357103]
[1729013883864,0.002,66579.0,66578.0,0.357103]
[1729013884347,0.002,66579.0,66578.0,0.36811218]
[1729013884760,0.01073603,66587.0,66578.0,1.34360918]
[1729013885060,0.075089,66591.0,66578.0,1.34360918]
[1729013885061,0.075092,66588.0,66587.0,0.075093]
[1729013885357,0.075088,66592.0,66591.0,0.075088]
[1729013885545,0.435883,66596.0,66594.0,0.075085]
[1729013885750,0.3608,66596.0,66591.0,0.3608]
[1729013885957,0.3608,66596.0,66595.0,0.075084]
[1729013886158,0.3608,66596.0,66595.0,0.11973266]
[1729013886659,0.435869,66609.0,66608.0,0.075069]
[1729013886866,0.435869,66609.0,66601.0,0.04463332]
[1729013886867,0.3608,66609.0,66601.0,0.04463332]
[1729013887168,0.3608,66609.0,66602.0,0.04463332]
[1729013887374,0.07731783,66612.0,66611.0,0.075066]
[1729013887774,0.07731783,66612.0,66611.0,0.435866]
[1729013887775,0.00225283,66612.0,66611.0,0.435866]
[1729013887967,0.075053,66623.0,66616.0,0.07506]
[1729013888274,0.3608,66634.0,66622.0,0.26]
[1729013888461,0.3608,66634.0,66629.0,0.075045]
[1729013888661,0.3608,66636.0,66630.0,0.26]
[1729013888866,0.00076,66640.0,66637.0,0.075036]
[1729013888867,0.075034,66640.0,66637.0,0.075036]
[1729013889062,0.075034,66640.0,66634.0,0.26]
[1729013889063,0.075034,66640.0,66638.0,0.075034]
[1729013889270,0.075034,66640.0,66634.0,0.26]
[1729013890071,0.013,66636.0,66635.0,0.075039]
[1729013890272,0.00225185,66648.0,66635.0,0.9608]
[1729013890470,0.00225185,66648.0,66647.0,0.075025]
[1729013890666,0.07727585,66648.0,66647.0,0.075025]
[1729013891365,0.00225185,66648.0,66647.0,0.075025]
[1729013891776,0.01525185,66648.0,66647.0,0.076025]
[1729013892074,0.09027585,66648.0,66647.0,0.001]
[1729013892370,0.09027585,66648.0,66647.0,0.002]
[1729013892573,0.09027585,66648.0,66647.0,0.077025]
[1729013893572,0.09027585,66648.0,66647.0,0.002]
[1729013896376,0.01525185,66648.0,66647.0,0.337025]
[1729013896573,0.26,66658.0,66647.0,0.337025]
[1729013896574,0.3608,66661.0,66660.0,0.075011]
[1729013896781,0.075002,66668.0,66660.0,0.26]
[1729013896975,0.075002,66668.0,66667.0,0.075003]
[1729013897465,0.0022507,66670.0,66660.0,0.26]
[1729013897671,0.075004,66666.0,66663.0,0.075006]
[1729013897866,0.075004,66666.0,66660.0,0.272]
[1729013898071,0.001,66668.0,66660.0,0.272]
[1729013898271,0.001,66668.0,66660.0,0.286]
[1729013898671,0.0032507,66670.0,66660.0,0.28]
[1729013898871,0.0782497,66670.0,66669.0,0.075001]
[1729013899281,0.075005,66666.0,66665.0,0.075003]
[1729013899779,0.0032507,66670.0,66660.0,0.273]
[1729013900078,0.075009,66662.0,66661.0,0.075008]
[1729013900481,0.26,66668.0,66660.0,0.016]
[1729013900679,0.075006,66665.0,66664.0,0.075004]
[1729013901774,0.075006,66665.0,66664.0,0.077004]
[1729013901976,0.075006,66665.0,66664.0,0.082004]
[1729013902782,0.075006,66665.0,66664.0,0.080004]
[1729013903085,0.075006,66665.0,66664.0,0.082004]
[1729013903478,0.075006,66665.0,66664.0,0.081004]
[1729013904372,0.075006,66665.0,66664.0,0.079004]
[1729013904585,0.075006,66665.0,66664.0,0.081004]
[1729013904885,0.075004,66668.0,66667.0,0.075002]
[1729013905476,0.0022507,66670.0,66664.0,0.6268]
[1729013905781,0.3608,66686.0,66674.0,0.074994]
[1729013905990,0.3608,66686.0,66685.0,0.074983]
[1729013906185,0.0022499,66694.0,66687.0,0.07498]
[1729013906383,0.0022499,66694.0,66683.0,0.6208]
[1729013906384,0.01326898,66694.0,66683.0,0.6208]
[1729013906591,0.0022499,66694.0,66683.0,0.6208]
[1729013906785,0.074976,66692.0,66691.0,0.074975]
[1729013907790,0.0022499,66694.0,66683.0,0.6348]
[1729013907978,0.074978,66690.0,66689.0,0.074976]
[1729013908985,0.01308491,66694.0,66687.0,0.011]
[1729013909180,0.08805791,66694.0,66693.0,0.074974]
[1729013910385,0.0772229,66694.0,66693.0,0.074974]
[1729013910591,0.0022499,66694.0,66693.0,0.074974]
[1729013911398,0.3608,66708.0,66693.0,1.4106]
[1729013911583,0.074961,66704.0,66703.0,0.074962]
[1729013911784,0.074961,66704.0,66703.0,0.435762]
[1729013912088,0.074961,66704.0,66703.0,0.074962]
[1729013912289,0.074961,66704.0,66699.0,0.26]
[1729013912290,0.074961,66705.0,66704.0,0.074958]
[1729013912895,0.074961,66705.0,66699.0,0.3608]
[1729013912896,0.26,66705.0,66699.0,0.3608]
[1729013913089,0.074966,66702.0,66701.0,0.074964]
[1729013914780,0.002,66704.0,66703.0,0.001]
[1729013914985,0.074961,66704.0,66703.0,0.001]
[1729013915697,0.26,66705.0,66701.0,0.001]
[1729013915698,0.074964,66702.0,66701.0,0.002]
[1729013915997,0.074964,66702.0,66701.0,0.076965]
[1729013916191,0.3608,66711.0,66701.0,0.001]
[1729013916385,0.074958,66708.0,66707.0,0.074955]
[1729013917991,0.074961,66704.0,66703.0,0.076962]
[1729013918391,0.074961,66704.0,66703.0,0.074962]
[1729013918990,0.074961,66704.0,66703.0,0.075962]
[1729013919498,0.076961,66704.0,66703.0,0.076962]
[1729013920401,0.076961,66704.0,66703.0,0.002]
[1729013925292,0.08777534,66704.0,66703.0,0.002]
[1729013925801,0.074971,66696.0,66692.0,0.074975]
[1729013926002,0.074978,66693.0,66692.0,0.074975]
[1729013926295,0.074978,66693.0,66686.0,0.07498]
[1729013926296,0.07498,66689.0,66688.0,0.074979]
[1729013928413,0.07498,66689.0,66688.0,0.075979]
[1729013930502,0.3608,66698.0,66688.0,1.05084]
[1729013930709,0.05628804,66697.0,66696.0,0.07497]
[1729013930999,0.05628804,66697.0,66696.0,0.24497]
[1729013931199,0.074963,66703.0,66702.0,0.074962]
[1729013931392,0.13166954,66703.0,66702.0,0.244962]
[1729013931599,0.05670654,66703.0,66702.0,0.244962]
[1729013931798,0.074956,66709.0,66702.0,0.244962]
[1729013931994,0.074956,66709.0,66708.0,0.244957]
[1729013932211,0.142517,66709.0,66708.0,0.244957]
[1729013932402,0.142517,66709.0,66708.0,0.074957]
[1729013934108,0.142517,66709.0,66708.0,0.088957]
[1729013934309,0.142517,66709.0,66708.0,0.102957]
[1729013935298,0.142517,66709.0,66708.0,0.028]
[1729013935506,0.142517,66709.0,66708.0,0.102957]
[1729013937199,0.142517,66709.0,66708.0,0.028]
[1729013937705,0.067561,66709.0,66707.0,0.05046291]
[1729013937903,0.01090969,66709.0,66706.0,0.04459493]
[1729013938105,0.435752,66713.0,66706.0,0.04459493]
[1729013938106,0.334958,66707.0,66706.0,0.04459493]
[1729013938412,0.07496,66705.0,66704.0,0.07496]
[1729013939809,0.3618,66709.0,66703.0,0.0539]
[1729013940107,0.3618,66709.0,66698.0,0.3608]
[1729013940108,0.074967,66699.0,66698.0,0.3608]
[1729013940308,0.07497,66696.0,66695.0,0.04486621]
[1729013940508,0.26,66699.0,66692.0,0.04486621]
[1729013940710,0.00076,66702.0,66701.0,0.074965]
[1729013940915,0.027,66705.0,66704.0,0.074961]
[1729013941115,0.027,66705.0,66704.0,0.435761]
[1729013941315,0.014,66705.0,66704.0,1.485521]
[1729013942020,0.014,66705.0,66704.0,0.435761]
[1729013942614,0.028,66705.0,66704.0,0.435761]
[1729013942915,0.3608,66724.0,66717.0,0.074947]
[1729013943222,0.074945,66719.0,66717.0,0.334947]
[1729013943425,0.3608,66726.0,66717.0,0.334947]
[1729013943626,0.01112338,66720.0,66717.0,0.334947]
[1729013943820,0.08606638,66720.0,66717.0,0.334947]
[1729013944329,0.01624919,66718.0,66717.0,0.335947]
[1729013944729,0.02924919,66718.0,66717.0,0.336947]
[1729013944925,0.02924919,66718.0,66717.0,0.41775779]
[1729013945625,0.10419519,66718.0,66717.0,0.41775779]
[1729013946328,0.02924919,66718.0,66717.0,0.41775779]
[1729013946526,0.02924919,66718.0,66717.0,0.5074847]
[1729013946728,0.02924919,66718.0,66717.0,0.41775779]
[1729013947028,0.02924919,66718.0,66717.0,0.5074847]
[1729013947228,0.02924919,66718.0,66717.0,0.41775779]
[1729013947428,0.02924919,66718.0,66717.0,0.50731548]
[1729013947635,0.027,66718.0,66717.0,0.15775779]
[1729013948926,0.101946,66718.0,66717.0,0.15775779]
[1729013949131,0.101946,66718.0,66717.0,0.002]